fUST/lending_fUST_20250418
["ID","MTS","AMOUNT","RATE_DAILY","PERIOD"]
[358304874,1744914639639,-300.0,0.00020256,2]
[358304875,1744914639650,-185.57269521,0.00020256,2]
[358304876,1744914639660,-500.0,0.00020256,2]
[358304877,1744914639669,-500.0,0.00020256,2]
[358304878,1744914639679,-500.0,0.00020256,2]
[358304879,1744914639688,-500.0,0.00020256,2]
[358304880,1744914639698,-500.0,0.00020256,2]
[358304881,1744914639707,-203.70716396,0.00020256,2]
[358304882,1744914639717,-500.0,0.00020256,2]
[358304883,1744914639726,-500.0,0.00020256,2]
[358304885,1744914639736,-161.38511412,0.00020256,2]
[358304886,1744914639745,-500.0,0.00020256,2]
[358304887,1744914639755,-500.0,0.00020256,2]
[358304888,1744914639765,-500.0,0.00020256,2]
[358304889,1744914639774,-408.95633286,0.00020256,2]
[358304890,1744914639784,-422.3015716,0.00020256,2]
[358304891,1744914639794,-159.816185,0.00020256,2]
[358304892,1744914639804,-151.0,0.00020256,2]
[358304893,1744914639813,-151.0,0.00020256,2]
[358304894,1744914639823,-651.548,0.00020256,2]
[358304895,1744914639832,-651.548,0.00020256,2]
[358304896,1744914639842,-500.0,0.00020267,2]
[358304897,1744914639851,-500.0,0.00020267,2]
[358304898,1744914639861,-500.0,0.00020267,2]
[358304899,1744914639870,-500.0,0.00020267,2]
[358304900,1744914639880,-500.0,0.00020267,2]
[358304901,1744914639889,-500.0,0.00020267,2]
[358304902,1744914639899,-500.0,0.00020267,2]
[358304903,1744914639909,-500.0,0.00020267,2]
[358304904,1744914639918,-502.35679759,0.00020267,2]
[358304905,1744914639928,-500.0,0.00020267,2]
[358304906,1744914639937,-500.0,0.00020267,2]
[358304907,1744914639946,-500.0,0.00020267,2]
[358304909,1744914639955,-500.0,0.00020267,2]
[358304910,1744914639967,-151.0,0.00020267,2]
[358304912,1744914639977,-625.148526,0.00020267,2]
[358304913,1744914639986,-625.148526,0.00020267,2]
[358304914,1744914639997,-271.3668746,0.00020274,2]
[358304915,1744914640006,-151.0,0.0002034,2]
[358304916,1744914640016,-151.0,0.0002034,2]
[358304917,1744914640026,-651.548,0.0002034,2]
[358304918,1744914640035,-651.548,0.0002034,2]
[358304919,1744914640045,-500.0,0.0002034,2]
[358304920,1744914640054,-500.0,0.0002034,2]
[358304921,1744914640064,-500.0,0.0002034,2]
[358304922,1744914640075,-500.0,0.0002034,2]
[358304923,1744914640084,-500.0,0.0002034,2]
[358304924,1744914640094,-205.77641,0.00020375,2]
[358304925,1744914640103,-205.77641,0.00020375,2]
[358304926,1744914640113,-153.23806,0.00020375,2]
[358304928,1744914640123,-151.0,0.00020375,2]
[358304930,1744914640133,-154.258356,0.00020375,2]
[358304931,1744914640143,-151.0,0.00020375,2]
[358304932,1744914640153,-180.019068,0.00020375,2]
[358304933,1744914640165,-392.55671863,0.00020384,2]
[358304934,1744914640175,-151.0,0.000204,4]
[358304935,1744914640184,-224.012621,0.000204,2]
[358304936,1744914640194,-625.148526,0.000204,2]
[358304937,1744914640204,-625.148526,0.000204,2]
[358304938,1744914640214,-151.0,0.000206,3]
[358304939,1744914640224,-151.0,0.000206,4]
[358304941,1744914640234,-154.46390483,0.00020641,2]
[358304943,1744914640243,-447.02753544,0.0002071,20]
[358304944,1744914640252,-2000.0,0.00020794,4]
[358304945,1744914640260,-151.0,0.000208,4]
[358304946,1744914640270,-151.0,0.000209,3]
[358304947,1744914640279,-151.0,0.000209,2]
[358304948,1744914640289,-151.0,0.000209,2]
[358304949,1744914640298,-500.0,0.000209,2]
[358304950,1744914640308,-151.0,0.000209,2]
[358304951,1744914640317,-500.0,0.000209,2]
[358304952,1744914640327,-500.0,0.000209,2]
[358304953,1744914640336,-151.0,0.000209,2]
[358304955,1744914640345,-160.343882,0.000209,2]
[358304957,1744914640355,-151.0,0.000209,2]
[358304959,1744914640364,-151.0,0.000209,2]
[358304960,1744914640373,-7000.15742952,0.00020945,2]
[358304962,1744914640383,-205.77641,0.00020945,2]
[358304964,1744914640392,-205.77641,0.00020945,2]
[358304965,1744914640402,-651.548,0.00020945,2]
[358304966,1744914640411,-651.548,0.00020945,2]
[358304967,1744914640420,-151.0,0.00020973,2]
[358304968,1744914640430,-151.0,0.00020973,2]
[358304969,1744914640439,-168.31430499,0.00020973,2]
[358304970,1744914640448,-500.0,0.00020973,2]
[358304971,1744914640458,-153.32644936,0.00020973,2]
[358304972,1744914640467,-152.2274126,0.00020973,2]
[358304973,1744914640476,-179.36241109,0.00020973,2]
[358304975,1744914640486,-151.4976336,0.00020973,2]
[358304977,1744914640495,-254.67798361,0.00020973,2]
[358304978,1744914640505,-625.148526,0.00020973,2]
[358304980,1744914640515,-625.148526,0.00020973,2]
[358304982,1744914640525,-330574.547605,0.00021,2]
[358305030,1744914641088,-2555.94816293,0.00019673,2]
[358305032,1744914641098,-156.587,0.00020032,2]
[358305033,1744914641108,-184.413,0.00020032,2]
[358305036,1744914641118,-70159.998916,0.00021,2]
[358305038,1744914641127,-205.77641,0.00021,2]
[358305040,1744914641137,-205.77641,0.00021,2]
[358305042,1744914641146,-625.148526,0.00021,2]
[358305044,1744914641157,-625.148526,0.00021,2]
[358305046,1744914641169,-215.22867,0.00021,2]
[358305048,1744914641179,-213.373038,0.00021,2]
[358305050,1744914641188,-651.548,0.00021,2]
[358305052,1744914641198,-651.548,0.00021,2]
[358305054,1744914641207,-151.0,0.00021037,2]
[358305056,1744914641217,-151.0,0.00021037,2]
[358305058,1744914641227,-500.0,0.00021037,2]
[358305060,1744914641237,-151.0,0.00021037,2]
[358305062,1744914641248,-500.0,0.00021037,2]
[358305064,1744914641257,-500.0,0.00021037,2]
[358305066,1744914641267,-191.39767635,0.00021037,2]
[358305068,1744914641276,-623.4139313,0.00021096,2]
[358305070,1744914641286,-151.0,0.000211,4]
[358305072,1744914641296,-151.0,0.0002111,2]
[358305074,1744914641305,-151.0,0.0002111,2]
[358305076,1744914641314,-500.0,0.0002111,2]
[358305078,1744914641323,-174.417212,0.00021164,2]
[358305080,1744914641332,-198.0,0.00021174,2]
[358305082,1744914641341,-156.84909323,0.00021174,2]
[358305084,1744914641351,-500.0,0.00021174,2]
[358305086,1744914641362,-198.0,0.00021174,2]
[358305088,1744914641372,-500.0,0.00021174,2]
[358305090,1744914641382,-353.89535354,0.00021174,2]
[358305092,1744914641392,-4172.26211038,0.000212,30]
[358305291,1744914643404,-305.21753407,0.00018995,2]
[358305294,1744914643422,-194.78246593,0.00018995,2]
[358305296,1744914643432,-500.0,0.00018996,2]
[358305298,1744914643442,-1000.0,0.000208,2]
[358305300,1744914643452,-3301.34517995,0.000212,30]
[358305303,1744914643462,-151.0,0.000212,4]
[358305305,1744914643472,-160.31519562,0.00021205,2]
[358305307,1744914643482,-151.0,0.00021247,2]
[358305309,1744914643492,-161.480104,0.00021247,2]
[358305311,1744914643501,-155.57979842,0.00021247,2]
[358305313,1744914643511,-500.0,0.00021311,2]
[358305315,1744914643521,-500.0,0.00021311,2]
[358305317,1744914643531,-402.0,0.00021315,2]
[358305319,1744914643542,-151.0,0.00021357,2]
[358305321,1744914643552,-651.548,0.00021376,2]
[358305323,1744914643562,-651.548,0.00021376,2]
[358305326,1744914643572,-151.0,0.00021384,2]
[358305328,1744914643582,-151.0,0.000214,4]
[358305330,1744914643592,-151.0,0.000214,3]
[358305335,1744914643602,-951.0,0.000214,2]
[358305337,1744914643612,-205.77641,0.00021401,2]
[358305339,1744914643622,-205.77641,0.00021401,2]
[358305341,1744914643632,-620.72370954,0.00021401,2]
[358305976,1744914690650,250.0,0.0001797,2]
[358305977,1744914773380,1000.0,0.00025,120]
[358305978,1744915011409,300.0,0.00025,120]
[358306057,1744915832379,-6516.24025553,0.00019,2]
[358306059,1744915832388,-300.0,0.00019118,2]
[358306061,1744915832398,-300.0,0.00019118,2]
[358306063,1744915832408,-1348.89531181,0.00019119,2]
[358306104,1744915838580,-22131.00892149,0.00019119,2]
[358306106,1744915838590,-1418.7724716,0.00019194,2]
[358306108,1744915838600,-2024.20776195,0.00019666,2]
[358306110,1744915838612,-2593.7484184,0.00019724,2]
[358306112,1744915838623,-187.155744,0.00019725,3]
[358306114,1744915838633,-10000.0,0.00019759,2]
[358306116,1744915838642,-152.0,0.00019856,2]
[358306119,1744915838652,-50000.0,0.00020163,2]
[358306121,1744915838662,-500.0,0.00020163,2]
[358306123,1744915838672,-500.0,0.00020163,2]
[358306125,1744915838682,-500.0,0.00020163,2]
[358306127,1744915838692,-500.0,0.00020163,2]
[358306129,1744915838703,-500.0,0.00020163,2]
[358306131,1744915838714,-500.0,0.00020163,2]
[358306133,1744915838723,-500.0,0.00020163,2]
[358306135,1744915838733,-500.0,0.00020163,2]
[358306137,1744915838744,-500.0,0.00020163,2]
[358306139,1744915838754,-500.0,0.00020163,2]
[358306141,1744915838764,-388.54491189,0.00020163,2]
[358306144,1744915838778,-500.0,0.00020163,2]
[358306146,1744915838788,-380.11106845,0.00020163,2]
[358306148,1744915838798,-382.70692903,0.00020163,2]
[358306150,1744915838808,-500.0,0.00020163,2]
[358306152,1744915838818,-500.0,0.00020163,2]
[358306154,1744915838828,-500.0,0.00020163,2]
[358306156,1744915838838,-500.0,0.00020163,2]
[358306158,1744915838848,-500.0,0.00020163,2]
[358306160,1744915838858,-500.0,0.00020163,2]
[358306162,1744915838868,-500.0,0.00020163,2]
[358306164,1744915838878,-500.0,0.00020163,2]
[358306166,1744915838888,-500.0,0.00020163,2]
[358306169,1744915838898,-500.0,0.00020163,2]
[358306171,1744915838907,-500.0,0.00020163,2]
[358306172,1744915838917,-500.0,0.00020163,2]
[358306175,1744915838926,-500.0,0.00020163,2]
[358306176,1744915838936,-500.0,0.00020163,2]
[358306179,1744915838945,-500.0,0.00020163,2]
[358306181,1744915838955,-500.0,0.00020163,2]
[358306183,1744915838965,-500.0,0.00020163,2]
[358306185,1744915838975,-500.0,0.00020163,2]
[358306187,1744915838985,-500.0,0.00020163,2]
[358306189,1744915838995,-500.0,0.00020163,2]
[358306191,1744915839004,-500.0,0.00020163,2]
[358306193,1744915839014,-237.0324268,0.00020163,2]
[358306195,1744915839024,-500.0,0.00020163,2]
[358306197,1744915839034,-500.0,0.00020163,2]
[358306199,1744915839044,-500.0,0.00020163,2]
[358306201,1744915839054,-500.0,0.00020163,2]
[358306203,1744915839064,-500.0,0.00020163,2]
[358306205,1744915839074,-500.0,0.00020163,2]
[358306207,1744915839084,-500.0,0.00020163,2]
[358306209,1744915839094,-187.155744,0.00020164,3]
[358306211,1744915839104,-368.32752915,0.000202,2]
[358306213,1744915839113,-500.0,0.000202,2]
[358306215,1744915839123,-500.0,0.000202,2]
[358306217,1744915839133,-500.0,0.000202,2]
[358306219,1744915839144,-500.0,0.000202,2]
[358306221,1744915839154,-504.09900709,0.000202,2]
[358306223,1744915839164,-504.14243236,0.000202,2]
[358306226,1744915839174,-500.0,0.000202,2]
[358306228,1744915839183,-510.06423216,0.000202,2]
[358306230,1744915839193,-500.0,0.000202,2]
[358306231,1744915839203,-300.0,0.000202,2]
[358306234,1744915839215,-187.155744,0.00020218,2]
[358306236,1744915839224,-192.0,0.00020302,2]
[358306238,1744915839234,-498.05175966,0.00020434,2]
[358306240,1744915839245,-151.0,0.00020522,2]
[358306242,1744915839254,-207.4,0.00020522,2]
[358306244,1744915839264,-187.155744,0.00020534,2]
[358306246,1744915839274,-187.155744,0.00020602,3]
[358306248,1744915839284,-187.155744,0.000207,30]
[358306250,1744915839294,-187.155744,0.00020719,30]
[358306252,1744915839304,-187.155744,0.00020738,30]
[358306254,1744915839313,-498.05175966,0.00020755,2]
[358306256,1744915839323,-187.155744,0.00020757,30]
[358306259,1744915839333,-174.417212,0.00020776,30]
[358306261,1744915839343,-187.155744,0.00020776,30]
[358306263,1744915839352,-420.0,0.00020836,2]
[358306265,1744915839362,-187.155744,0.00020849,2]
[358306267,1744915839372,-2593.7484184,0.00020923,2]
[358306269,1744915839382,-420.0,0.00020937,2]
[358306271,1744915839391,-187.155744,0.0002104,3]
[358306273,1744915839401,-498.05175966,0.00021076,2]
[358306275,1744915839411,-187.155744,0.00021164,2]
[358306277,1744915839420,-1000.0,0.000212,2]
[358306279,1744915839430,-498.05175966,0.00021396,2]
[358306281,1744915839440,-586.87198425,0.00021398,2]
[358306283,1744915839450,-2555.94816293,0.000214,2]
[358306285,1744915839462,-2000.0,0.000214,2]
[358306287,1744915839472,-174.417212,0.00021479,2]
[358306289,1744915839482,-174.417212,0.00021479,3]
[358306291,1744915839493,-187.155744,0.00021479,2]
[358306293,1744915839502,-187.155744,0.00021479,3]
[358306295,1744915839512,-160.31519562,0.00021479,2]
[358306297,1744915839524,-200.0,0.00021479,2]
[358306299,1744915839538,-151.0,0.000216,4]
[358306301,1744915839548,-250.0,0.00021607,2]
[358306303,1744915839558,-159.352,0.00021607,2]
[358306305,1744915839570,-2000.0,0.00021653,2]
[358306307,1744915839580,-420.29423865,0.0002168,2]
[358306309,1744915839591,-160.0,0.00021681,2]
[358306311,1744915839601,-160.0,0.00021681,2]
[358306313,1744915839613,-160.0,0.00021681,2]
[358306315,1744915839624,-5888.02334207,0.00021698,2]
[358306317,1744915839634,-252.76,0.00021712,2]
[358306319,1744915839645,-498.05175966,0.00021717,2]
[358306321,1744915839655,-445.18,0.00021816,2]
[358306324,1744915839665,-5044.68137439,0.00021817,2]
[358306326,1744915839679,-9861.00181166,0.00021817,2]
[358306328,1744915839691,-35690.70257092,0.00021817,2]
[358306331,1744915839706,-3273.91548045,0.00021817,2]
[358306333,1744915839719,-68931.18012944,0.00021817,2]
[358306335,1744915839735,-2767.38334181,0.00021817,2]
[358306943,1744915846798,-402.0,0.00021236,2]
[358306944,1744915846809,-1679.18187811,0.00021816,2]
[358306945,1744915846856,-876.76628482,0.00021816,2]
[358306946,1744915846866,-244431.13529133,0.00021817,2]
[358306947,1744915846876,-3070.83446832,0.00021817,2]
[358306948,1744915846886,-600.0,0.00021844,2]
[358306949,1744915846896,-500.0,0.00021873,2]
[358306950,1744915846906,-500.0,0.00021873,2]
[358306951,1744915846916,-500.0,0.00021873,2]
[358306952,1744915846926,-500.0,0.00021873,2]
[358306953,1744915846936,-500.0,0.00021873,2]
[358306954,1744915846946,-500.0,0.00021873,2]
[358306955,1744915846955,-500.0,0.00021873,2]
[358306956,1744915846966,-500.0,0.00021873,2]
[358306957,1744915846975,-502.75357485,0.00021873,2]
[358306958,1744915846985,-500.0,0.00021873,2]
[358306959,1744915846995,-500.0,0.00021873,2]
[358306960,1744915847005,-537.78304744,0.00021873,2]
[358306961,1744915847015,-500.0,0.00021873,2]
[358306962,1744915847024,-500.0,0.00021873,2]
[358306963,1744915847033,-500.0,0.00021873,2]
[358306964,1744915847043,-500.0,0.00021873,2]
[358306965,1744915847052,-500.0,0.00021873,2]
[358306966,1744915847063,-500.0,0.00021873,2]
[358306967,1744915847072,-500.0,0.00021873,2]
[358306968,1744915847083,-611.33377677,0.00021873,2]
[358306969,1744915847093,-500.0,0.00021873,2]
[358306970,1744915847103,-500.0,0.00021873,2]
[358306971,1744915847113,-500.0,0.00021873,2]
[358306972,1744915847123,-500.0,0.00021873,2]
[358306973,1744915847132,-151.0,0.00021891,2]
[358306974,1744915847141,-215.0738,0.00021891,2]
[358306975,1744915847150,-160.0,0.00021898,2]
[358306976,1744915847160,-12556.6594983,0.00021898,2]
[358306977,1744915847170,-160.0,0.00021898,2]
[358306978,1744915847179,-839.11004726,0.00021898,2]
[358306979,1744915847190,-3000.0,0.000219,2]
[358306980,1744915847199,-3000.0,0.0002191,2]
[358306981,1744915847208,-151.0,0.0002191,2]
[358306982,1744915847218,-500.0,0.0002191,2]
[358306983,1744915847228,-151.0,0.0002191,2]
[358306984,1744915847237,-254.0,0.0002191,2]
[358306985,1744915847246,-198.39609007,0.0002191,2]
[358306986,1744915847256,-20385.1954734,0.00021917,2]
[358306987,1744915847266,-2392.06945175,0.00021917,3]
[358306988,1744915847275,-500.0,0.00021917,2]
[358306989,1744915847285,-500.0,0.00021917,2]
[358306990,1744915847295,-500.0,0.00021917,2]
[358306991,1744915847304,-500.0,0.00021917,2]
[358306992,1744915847314,-500.0,0.00021917,2]
[358306993,1744915847324,-500.0,0.00021917,2]
[358306994,1744915847333,-500.0,0.00021917,2]
[358306995,1744915847342,-500.0,0.00021917,2]
[358306996,1744915847352,-500.0,0.00021917,2]
[358306997,1744915847361,-500.0,0.00021917,2]
[358306998,1744915847371,-500.0,0.00021917,2]
[358306999,1744915847381,-500.0,0.00021917,2]
[358307000,1744915847390,-569.1119272,0.00021917,2]
[358307001,1744915847400,-500.0,0.00021917,2]
[358307002,1744915847411,-500.0,0.00021917,2]
[358307003,1744915847428,-500.0,0.00021917,2]
[358307004,1744915847444,-500.0,0.00021917,2]
[358307005,1744915847457,-500.0,0.00021917,2]
[358307006,1744915847468,-500.0,0.00021917,2]
[358307007,1744915847478,-500.0,0.00021917,2]
[358307008,1744915847487,-500.0,0.00021917,2]
[358307009,1744915847497,-266.0,0.00021917,2]
[358307010,1744915847507,-500.0,0.00021917,2]
[358307011,1744915847516,-366.78425567,0.00021917,2]
[358307012,1744915847526,-500.0,0.00021917,2]
[358307013,1744915847538,-500.0,0.00021917,2]
[358307014,1744915847548,-504.71,0.00021917,2]
[358307015,1744915847558,-500.0,0.00021917,2]
[358307016,1744915847568,-500.0,0.00021917,2]
[358307017,1744915847577,-500.0,0.00021917,2]
[358307018,1744915847587,-500.0,0.00021917,2]
[358307019,1744915847597,-500.0,0.00021917,2]
[358307020,1744915847607,-500.0,0.00021917,2]
[358307021,1744915847619,-228.09239185,0.00021917,2]
[358307022,1744915847629,-500.0,0.00021917,2]
[358307023,1744915847638,-500.0,0.00021917,2]
[358307024,1744915847648,-1307.1,0.00021917,2]
[358307025,1744915847656,-500.0,0.00021917,2]
[358307026,1744915847665,-500.0,0.00021917,2]
[358307027,1744915847675,-500.0,0.00021917,2]
[358307028,1744915847684,-500.0,0.00021917,2]
[358307029,1744915847694,-500.0,0.00021917,2]
[358307030,1744915847704,-500.0,0.00021917,2]
[358307031,1744915847714,-500.0,0.00021917,2]
[358307032,1744915847723,-570.17,0.00021917,2]
[358307033,1744915847733,-500.0,0.00021917,2]
[358307034,1744915847742,-500.0,0.00021917,2]
[358307035,1744915847752,-612.48651037,0.00021917,2]
[358307036,1744915847762,-560.33,0.00021917,2]
[358307037,1744915847772,-500.0,0.00021917,2]
[358307038,1744915847782,-500.0,0.00021917,2]
[358307039,1744915847792,-542.05,0.00021917,2]
[358307040,1744915847802,-500.0,0.00021917,2]
[358307041,1744915847811,-503.75,0.00021917,2]
[358307042,1744915847821,-500.0,0.00021917,2]
[358307043,1744915847831,-500.0,0.00021917,2]
[358307044,1744915847841,-500.0,0.00021917,2]
[358307045,1744915847851,-500.0,0.00021917,2]
[358307046,1744915847860,-500.0,0.00021917,2]
[358307047,1744915847870,-500.0,0.00021917,2]
[358307048,1744915847880,-500.0,0.00021917,2]
[358307049,1744915847890,-626.78,0.00021917,2]
[358307050,1744915847899,-500.0,0.00021917,2]
[358307051,1744915847909,-651.69,0.00021917,2]
[358307052,1744915847919,-519.03,0.00021917,2]
[358307053,1744915847929,-159.47887972,0.00021917,2]
[358307054,1744915847938,-571.95765196,0.00021917,2]
[358307055,1744915847948,-395.92651735,0.00021917,2]
[358307056,1744915847957,-500.0,0.00021917,2]
[358307057,1744915847968,-500.0,0.00021917,2]
[358307058,1744915847977,-500.0,0.00021917,2]
[358307059,1744915847986,-253.77679063,0.00021917,2]
[358307060,1744915848006,-246.22320937,0.00021917,2]
[358307061,1744915848015,-103.97878594,0.00021917,2]
[358307101,1744915912782,9414.9790207,0.0001801,2]
[358307102,1744915952422,5585.023,0.0001801,2]
[358307105,1744916535074,4800.07,0.0001801,2]
[358307106,1744916700532,9977.95,0.0001801,2]
[358307131,1744916907257,5001.00000001,0.0001801,2]
[358307196,1744917032939,-250.0,0.000188,2]
[358307197,1744917032951,-808.7216521,0.000188,2]
[358307198,1744917032963,-1306.64816409,0.000188,2]
[358307199,1744917032972,-334.88681234,0.000189,2]
[358307200,1744917032982,-1229.09723868,0.00019,2]
[358307201,1744917033019,-6221.03240673,0.00019,2]
[358307346,1744917041152,-500.0,0.00018999,2]
[358307347,1744917041163,-342.42856795,0.00018999,2]
[358307348,1744917041176,-157.57143205,0.00018999,2]
[358307349,1744917041186,-500.0,0.00018999,2]
[358307350,1744917041195,-500.0,0.00018999,2]
[358307351,1744917041205,-500.0,0.00018999,2]
[358307352,1744917041215,-500.0,0.00018999,2]
[358307353,1744917041225,-500.0,0.00018999,2]
[358307354,1744917041235,-500.0,0.00018999,2]
[358307355,1744917041244,-500.0,0.00018999,2]
[358307356,1744917041254,-224.75676406,0.00018999,2]
[358307357,1744917041264,-517.19991179,0.00018999,2]
[358307358,1744917041278,-500.0,0.00018999,2]
[358307359,1744917041288,-500.0,0.00018999,2]
[358307360,1744917041298,-500.0,0.00018999,2]
[358307361,1744917041309,-500.0,0.00018999,2]
[358307362,1744917041319,-500.0,0.00018999,2]
[358307363,1744917041330,-500.0,0.00018999,2]
[358307364,1744917041340,-500.0,0.00018999,2]
[358307365,1744917041350,-500.0,0.00018999,2]
[358307366,1744917041360,-500.0,0.00018999,2]
[358307367,1744917041369,-500.0,0.00018999,2]
[358307368,1744917041379,-500.0,0.00018999,2]
[358307369,1744917041389,-500.0,0.00018999,2]
[358307370,1744917041398,-591.56480993,0.00018999,2]
[358307371,1744917041408,-500.0,0.00018999,2]
[358307372,1744917041418,-500.0,0.00018999,2]
[358307373,1744917041427,-373.30081098,0.00018999,2]
[358307374,1744917041440,-126.69918902,0.00018999,2]
[358307375,1744917041450,-500.0,0.00018999,2]
[358307376,1744917041459,-500.0,0.00018999,2]
[358307377,1744917041469,-500.0,0.00018999,2]
[358307378,1744917041478,-500.0,0.00018999,2]
[358307379,1744917041488,-500.0,0.00018999,2]
[358307380,1744917041497,-500.0,0.00018999,2]
[358307381,1744917041507,-500.0,0.00018999,2]
[358307382,1744917041517,-500.0,0.00018999,2]
[358307383,1744917041528,-500.0,0.00018999,2]
[358307384,1744917041538,-500.0,0.00018999,2]
[358307385,1744917041548,-500.0,0.00018999,2]
[358307386,1744917041558,-500.0,0.00018999,2]
[358307387,1744917041567,-500.0,0.00018999,2]
[358307388,1744917041578,-500.0,0.00018999,2]
[358307389,1744917041588,-500.0,0.00018999,2]
[358307390,1744917041597,-500.0,0.00018999,2]
[358307391,1744917041606,-500.0,0.00018999,2]
[358307392,1744917041615,-500.0,0.00018999,2]
[358307393,1744917041624,-500.0,0.00018999,2]
[358307394,1744917041634,-132.37479957,0.00018999,2]
[358307460,1744917046787,-367.62520043,0.00018999,2]
[358307461,1744917046798,-500.0,0.00018999,2]
[358307462,1744917046807,-500.0,0.00018999,2]
[358307463,1744917046817,-412.8912438,0.00018999,2]
[358307464,1744917046827,-346.8780772,0.00018999,2]
[358307465,1744917046900,-153.1219228,0.00018999,2]
[358307466,1744917046911,-500.0,0.00018999,2]
[358307467,1744917046920,-500.0,0.00018999,2]
[358307468,1744917046931,-500.0,0.00018999,2]
[358307469,1744917046941,-500.0,0.00018999,2]
[358307470,1744917046951,-500.0,0.00018999,2]
[358307471,1744917046962,-500.0,0.00018999,2]
[358307472,1744917046972,-217.27278331,0.00018999,2]
[358307473,1744917046981,-458.52718069,0.00018999,2]
[358307474,1744917046994,-68.14922621,0.00018999,2]
[358307475,1744917047004,-12667.47087086,0.00019,2]
[358307476,1744917047027,-13365.01089284,0.00019,2]
[358307477,1744917047039,-1646.76941929,0.00019,2]
[358307478,1744917047051,-1363.3573757,0.00019,2]
[358307479,1744917047064,-685.98913599,0.00019,2]
[358307480,1744917298702,287.12961947,0.00025,120]
[358307481,1744917766325,20519.0252759,0.00017996,2]
[358307488,1744917999940,968.3912136,0.0001798,2]
[358307511,1744918147503,1127.97604336,0.00018,2]
[358307543,1744918231891,-168.2924173,0.00018763,2]
[358307544,1744918231901,-200.81755866,0.00018763,2]
[358307545,1744918231909,-167.87915365,0.00018772,2]
[358307546,1744918231918,-250.0,0.000188,2]
[358307547,1744918231927,-167.87915364,0.00018822,2]
[358307548,1744918231936,-3297.35072857,0.00018872,2]
[358307549,1744918231945,-167.87915364,0.00018872,2]
[358307550,1744918231955,-223.25787489,0.000189,2]
[358307551,1744918231964,-300.0,0.00018971,2]
[358307552,1744918231973,-300.0,0.00018971,2]
[358307553,1744918231983,-621.28497888,0.00018972,2]
[358307554,1744918231992,-603.63755659,0.00018972,2]
[358307555,1744918232001,-168.57776798,0.00018972,2]
[358307556,1744918232010,-603.63755659,0.00018972,2]
[358307557,1744918232019,-603.63755659,0.00018972,2]
[358307558,1744918232029,-603.63755659,0.00018972,2]
[358307559,1744918232038,-603.63755659,0.00018972,2]
[358307560,1744918232047,-603.63755659,0.00018972,2]
[358307561,1744918232057,-603.63755659,0.00018972,2]
[358307562,1744918232066,-603.63755659,0.00018972,2]
[358307563,1744918232075,-603.63755659,0.00018972,2]
[358307564,1744918232084,-603.63755659,0.00018972,2]
[358307565,1744918232093,-603.63755659,0.00018972,2]
[358307566,1744918232103,-603.63755659,0.00018972,2]
[358307567,1744918232113,-603.63755659,0.00018972,2]
[358307568,1744918232122,-603.63755659,0.00018972,2]
[358307569,1744918232131,-603.63755659,0.00018972,2]
[358307570,1744918232140,-603.63755659,0.00018972,2]
[358307571,1744918232149,-603.63755659,0.00018972,2]